Cogmind - Beta 14 @@@ ROGUE MODE // 2025.03.11 @ 20:55:27 Player: AzureRose Result: Destroyed by Y-45 Defender with Beam Rifle Performance ------------- Evolutions (1) 500 Regions Visited (2) 400 Robots Destroyed (36) 180 Value Destroyed (911) 911 Prototype IDs (2) 40 Alien Tech Used (0) 0 Bonus (8) 8 TOTAL SCORE: 2039 Bonus ------- High Alert Combat Kills 8 Cogmind --------- Core Integrity 0/400 Matter 270/300 Energy 99/100 System Corruption 0% Temperature Cool (42) Movement Hovering (76) Location -9/Materials Parts ------- > --- POWER (1) -------- Backup Power I > --- PROPULSION (4) --- Backup Propulsion I Backup Propulsion I > --- UTILITY (2) ------ Signal Interpreter Backup Plating I > --- WEAPON (2) ------- Backup Laser I Grenade Launcher > --- INVENTORY (5) ---- Light Ion Engine Terrain Scanner Seismic Detector Hardened Light Armor Plating Particle Gun Peak State ------------ > --- POWER ------------ Improved Ion Engine > --- PROPULSION ------- Light Treads Light Treads Light Treads > --- UTILITY ---------- Terrain Scanner Hardened Light Armor Plating > --- WEAPON ----------- Medium Laser Beam Rifle > --- INVENTORY -------- Light Ion Engine Heat Sink Seismic Detector Grenade Launcher Datajack [Rating: 11] Favorites ----------- Power Ion Engine Engine Ion Engine Power Core Light Nuclear Core Propulsion Light Treads Treads Light Treads Hover Unit Backup Propulsion I Flight Unit Flight Unit Utility Small Storage Unit Device Terrain Scanner Storage Small Storage Unit Processor Signal Interpreter Protection Backup Plating I Weapon Assault Rifle Energy Gun Beam Rifle Energy Cannon Particle Cannon Ballistic Gun Assault Rifle Launcher Grenade Launcher Special Melee Weapon Datajack Build | -11 -10 -9 ------- Run | Yrd Mat Mat Slots Evolved 2 | . . 2 Power . | . . . Propulsion 2 | . . 2 Utility . | . . . Weapon . | . . . Parts Attached 43 | 6 10 27 Power 4 | 1 1 2 Engine 3 | 1 . 2 Core 1 | . 1 . Reactor . | . . . Propulsion 10 | 2 4 4 Treads 5 | 2 . 3 Leg . | . . . Wheel . | . . . Hover . | . . . Flight 5 | . 4 1 Utility 10 | 1 3 6 Device 6 | . 2 4 Storage 2 | 1 1 . Processor 1 | . . 1 Hackware . | . . . Protection 1 | . . 1 Artifact . | . . . Weapon 19 | 2 2 15 Energy Gun 8 | . . 8 Energy Cannon 1 | . . 1 Ballistic Gun 3 | 2 1 . Ballistic Cannon . | . . . Launcher 4 | . 1 3 Special Weapon . | . . . Impact Weapon . | . . . Slashing Weapon . | . . . Piercing Weapon . | . . . Special Melee Weapon 3 | . . 3 Unidentified Prototypes . | . . . Parts Lost 13 | . 3 10 Power 2 | . . 2 Propulsion 6 | . 1 5 Utility . | . . . Weapon 5 | . 2 3 Highest Loss Streak 6 | . 2 6 To Critical Strikes . | . . . Average Slot Usage (%) 84 | . 93 74 Engine 8 | . 9 8 Core 3 | . 4 1 Treads 21 | . 22 20 Flight 3 | . 3 4 Device 7 | . 4 11 Storage 9 | . 19 . Processor 1 | . . 3 Protection 3 | . 1 4 Energy Gun 8 | . 1 16 Ballistic Gun 12 | . 23 1 Launcher 1 | . 3 . Peak Build Rating 11 | 6 9 11 Average Rating 7 | 4 7 8 On Entrance 4 | . 6 8 Naked Turns . | . . . Heaviest Build 18 | 14 17 18 Greatest Support 60 | 40 40 60 Greatest Overweight (x) 1 | . . 1 Average Overweight (x) . | . . . Largest Inventory Capacity 8 | 8 8 5 Average Capacity 6 | 6 7 5 Most Carried 8 | 4 8 5 Average Carried 4 | 1 5 4 Final Capacity 8 | 8 5 5 Final Carried 5 | 2 5 5 Class Distribution -------------------- 65% | Mutant 34% | Scavenger-Mutant Dominant Class ---------------- Mutant | -10/Materials Scavenger-Mutant | -9/Materials Resources | -11 -10 -9 ----------- Run | Yrd Mat Mat Matter Collected 873 | 260 316 297 Remotely . | . . . Salvage Created 1208 | . 542 666 Parts 77 | . 35 42 Haulers Intercepted . | . . . Recyclers Shooed 1 | . 1 . Parts Field Recycled . | . . . Retrieved Matter . | . . . Parts Self-Destructed . | . . . Prevented . | . . . Kills | -11 -10 -9 ------- Run | Yrd Mat Mat Combat Hostiles Destroyed 30 | . 14 16 Guns 20 | . 10 10 Cannons 4 | . . 4 AOE 6 | . 4 2 Classes Destroyed 7 | . 4 3 Worker 1 | . . 1 Builder 1 | . 1 . Recycler 2 | . 2 . Watcher 2 | . . 2 Swarmer 9 | . 6 3 Grunt 17 | . 8 9 Sentry 4 | . . 4 Best Kill Streak 6 | . 5 6 Combat Bots Only 5 | . 4 5 Max Kills in Single Turn 2 | . 2 1 Gunslinging . | . . . Exploded 2 | . 2 1 Melee . | . . . Uniques/NPCs Destroyed . | . . . Combat | -11 -10 -9 -------- Run | Yrd Mat Mat Hostile Shots Fired 235 | . 80 155 Missed 61 | . 24 37 Damage Taken 2074 | . 692 1382 Core 523 | . 112 411 Absorbed by Shields . | . . . Regen/Repaired (Parts) 18 | . 18 . Core Remaining (%) 77 | 100 55 . Volleys Fired 108 | . 40 68 Largest 2 | . 2 2 Hottest 133 | . 50 133 Shots Fired 197 | . 79 118 Gun 173 | . 73 100 Cannon 14 | . . 14 Launcher 10 | . 6 4 Special . | . . . Kinetic 91 | . 73 18 Thermal 96 | . . 96 Explosive 10 | . 6 4 Electromagnetic . | . . . Robot Hit Streak 14 | . 11 14 Robot Miss Streak 5 | . 3 5 Penetration Max . | . . . Secondary Targets 2 | . . 2 Max Gunslinging Chain 1 | . . 1 Shots Hit Robots 123 | . 49 74 Core Hits 67 | . 26 41 Critical Kills 1 | . 1 . Critical Parts Destroyed 1 | . 1 . Critical Strikes 4 | . 2 2 Burn 2 | . . 2 Destroy 2 | . 2 . Melee Attacks . | . . . Impact . | . . . Slashing . | . . . Piercing . | . . . Sneak Attacks . | . . . Combat Hostiles . | . . . Follow-up Attacks . | . . . Damage Inflicted 2091 | . 913 1178 Guns 1288 | . 579 709 Cannons 225 | . . 225 Explosions 575 | . 331 244 Melee . | . . . Ramming 3 | . 3 . Kinetic 649 | . 579 70 Thermal 864 | . . 864 Explosive 575 | . 331 244 Electromagnetic . | . . . Impact . | . . . Slashing . | . . . Piercing . | . . . Highest Corruption 1 | . 1 . Average Corruption 1 | . 1 . Corruption Purged . | . . . Corruption Blocked . | . . . Effects 2 | . 2 . Matter Fused 1 | . 1 . Data Loss (minor) 1 | . 1 . Overload Shots . | . . . Overflow Damage 15 | . 1 14 Projectiles 14 | . . 14 Explosions 1 | . 1 . Melee . | . . . Knockbacks . | . . . Impact . | . . . Kinetic . | . . . Secondary . | . . . Self-Inflicted Damage 88 | . 51 37 Shots 5 | . 3 2 Rammed 1 | . 1 . Targets Rammed 1 | . 1 . Kicked . | . . . Crushed . | . . . Highest Temperature 315 | . 27 315 Average Temperature 81 | . 8 92 Received Heat Transfer 945 | . 303 642 Effects 1 | . . 1 Energy Bleed 1 | . . 1 Siege Activations . | . . . Robots Corrupted . | . . . Combat Hostiles . | . . . Parts Fried . | . . . Impact Corruptions . | . . . Robots Melted . | . . . Combat Hostiles . | . . . Parts Melted 6 | . . 6 Heat Transferred 2456 | . . 2456 Parts Sabotaged . | . . . Parts Stolen . | . . . Parts Stripped . | . . . Power Chain Reactions . | . . . Alert | -11 -10 -9 ------- Run | Yrd Mat Mat Peak Influence 417 | . 236 417 Initial 99 | . . 99 Average 177 | . 110 266 Maximum Alert Level 2 | . 1 2 Low Security (%) 47 | 100 70 17 Level 1 52 | . 29 81 Level 2 . | . . . Level 3 . | . . . Level 4 . | . . . Level 5 . | . . . High Security . | . . . Max Security . | . . . Squads Dispatched 7 | . 3 4 Investigation 5 | . 2 3 Extermination . | . . . Reinforcement 2 | . 1 1 Assault . | . . . Garrison . | . . . Intercept . | . . . Searches Triggered . | . . . Construction Impeded . | . . . Haulers Reinforced . | . . . Active Scanning Responses . | . . . Cargo Convoy Interrupts . | . . . Stealth | -11 -10 -9 --------- Run | Yrd Mat Mat Distress Signals 1 | . . 1 Communications Jammed . | . . . Distress Signals . | . . . Times Spotted 47 | . 17 30 Peak Tracking Total 8 | . 4 8 Tactical Retreats 1 | . . 1 Traps | -11 -10 -9 ------- Run | Yrd Mat Mat Traps Triggered 2 | . 1 1 Indirectly . | . . . Trap Hack Attempts . | . . . Triggered . | . . . Disarmed . | . . . Reprogrammed . | . . . Reused . | . . . Traps Extracted . | . . . Installed . | . . . Triggered . | . . . Machines | -11 -10 -9 ---------- Run | Yrd Mat Mat Machines Disabled . | . . . Max in Single Turn . | . . . Machines Repaired . | . . . Machines Dismantled . | . . . Machines Sabotaged . | . . . Overloaded Fab Kills . | . . . Hacking | -11 -10 -9 --------- Run | Yrd Mat Mat Machines Accessed 12 | . 8 4 Terminals 6 | . 5 1 Fabricators . | . . . Repair Stations 2 | . 1 1 Recycling Units 3 | . 2 1 Scanalyzers 1 | . . 1 Garrison Access . | . . . Total Hacks 34 | . 20 14 Successful 19 | . 11 8 Failed 15 | . 9 6 Catastrophic 3 | . 3 . Database Lockouts . | . . . Manual 9 | . 6 3 Terminals 19 | . 14 5 Fabricators . | . . . Repair Stations 7 | . 3 4 Recycling Units 4 | . 3 1 Scanalyzers 4 | . . 4 Garrison Access . | . . . Terminal Hacks 7 | . 5 2 Robot Analysis 1 | . 1 . Prototype ID Bank 1 | . . 1 Branch Access Points 1 | . 1 . Unreport Threat 1 | . 1 . Registered Components 2 | . 1 1 Zone Layout 1 | . 1 . Fabricator Hacks . | . . . Repair Station Hacks 6 | . 3 3 Scan Component 2 | . 1 1 Repair 2 | . 1 1 Refit 2 | . 1 1 Recycling Unit Hacks 4 | . 3 1 Report Inventory 3 | . 2 1 Retrieve Components 1 | . 1 . Scanalyzer 2 | . . 2 Insert Component 1 | . . 1 Analyze 1 | . . 1 Garrison Access Hacks . | . . . Unauthorized Hacks . | . . . Terminals . | . . . Fabricators . | . . . Repair Stations . | . . . Recycling Units . | . . . Scanalyzers . | . . . Garrison Access . | . . . Data Cores Recovered . | . . . Used . | . . . Hacking Detections 9 | . 6 3 Full Trace Events 8 | . 5 3 Feedback Events 1 | . 1 . Corruption 1 | . 1 . Feedback Blocked . | . . . Robot Schematics Acquired . | . . . Robots Built . | . . . Authchips . | . . . Time . | . . . Total Robot Build Rating . | . . . Part Schematics Acquired 1 | . . 1 Parts Built . | . . . Authchips . | . . . Time . | . . . Total Part Build Rating . | . . . Parts Repaired 1 | . 1 . Time 58 | . 26 32 Parts Recycled . | . . . Recycled Matter . | . . . Retrieved Matter . | . . . Retrieved Components 9 | . 9 . Parts Scanalyzed 1 | . . 1 Part Schematics Acquired 1 | . . 1 Parts Damaged . | . . . Bothacking | -11 -10 -9 ------------ Run | Yrd Mat Mat Used RIF Installer . | . . . Robots Hacked . | . . . Non-combat . | . . . Combat . | . . . Robot Hacks Applied . | . . . Relay Couplers Released . | . . . Fabnet Peak Effective % . | . . . Robots Rewired . | . . . Allies Hacked . | . . . Hacks Repelled . | . . . Allies | -11 -10 -9 -------- Run | Yrd Mat Mat Total Allies . | . . . Largest Group . | . . . Highest-Rated Group . | . . . Highest-Rated Ally . | . . . Total Orders . | . . . Ally Attacks . | . . . Total Damage . | . . . Kills . | . . . Allies Corrupted . | . . . Allies Melted . | . . . Intel | -11 -10 -9 ------- Run | Yrd Mat Mat Robot Analysis Total 1 | . 1 . Derelict Logs Recovered . | . . . Drone Launches . | . . . Drone Recoveries . | . . . Exploration | -11 -10 -9 ------------- Run | Yrd Mat Mat Turns Passed 1447 | 74 698 675 Spaces Moved 888 | 39 444 405 Core 13 | 2 . 11 Treads 562 | 37 294 231 Legs . | . . . Wheels . | . . . Hover 8 | . . 8 Flight 305 | . 150 155 Fastest Speed 37 | 50 37 37 Average Speed 116 | 154 118 110 Slowest Speed 160 | 160 160 160 Overloaded Moves . | . . . Propulsion Burnouts . | . . . Robots Hopped 3 | . . 3 Cave-ins Triggered . | . . . Exploration Rate (%) 40 | 5 75 42 Regions Visited 2 Branch Regions . Pre-discovered Areas . | . . . Known Exits Taken . | . . . Unknown Exits Taken 2 | 1 1 . Scrap Searched . | . . . Spaces Dug . | . . . Terrain Destroyed 69 | . 38 31 Melee . | . . . Projectile . | . . . AOE 69 | . 38 31 Terrain Rammed . | . . . Walls Destroyed . | . . . Machines Disabled . | . . . Actions | -11 -10 -9 --------- Run | Yrd Mat Mat Total 1104 | 53 538 513 Wait 27 | 1 26 . Move 880 | 38 443 399 Hop 3 | . . 3 Pick Up 20 | 8 9 3 Fast Attach 11 | . 2 9 Attach 11 | 6 3 2 Detach 3 | . 2 1 Swap 21 | . 5 16 Drop 19 | . 7 12 Fire 108 | . 40 68 Melee . | . . . Ram . | . . . Kick . | . . . Crush 1 | . 1 . Escape Stasis . | . . . Rewire . | . . . Trap . | . . . Miscellaneous . | . . . Route ------- -11/Scrapyard -10/Materials (discovered 2 exits: *Mat / *Min) -9/Materials (discovered 1 exit: [*Mat]) History --------- Turn | Location | Event 46 | -11/Scrapyard | Discovered new exit (range 12) 75 | -11/Scrapyard | Entered Materials 309 | -10/Materials | Build established: Mutant 624 | -10/Materials | Identified exit to Mines 739 | -10/Materials | Repaired Flight Unit 762 | -10/Materials | Discovered new exit (range 11) 773 | -10/Materials | Entered another Materials area 773 | -9/Materials | Evolved 2 slots: Propulsion x2 912 | -9/Materials | Lost 3 parts (1p1n1w) 995 | -9/Materials | Discovered new exit (range 4) 1080 | -9/Materials | Core integrity fell below 50% 1237 | -9/Materials | Build established: Scavenger-Mutant 1417 | -9/Materials | Core integrity fell below 20% 1448 | -9/Materials | Destroyed by Y-45 Defender with Beam Rifle Last Messages --------------- 01435_ Connecting with Repair Station... >>Refit Scanning configuration... Attaching: Backup Power I x1 Backup Propulsion I x2 Backup Plating I x1 Backup Laser I x1 >>Scan(Particle Cannon) Scanning Particle Cannon... Ready to Repair: Particle Cannon Rating: 2 Time: 32 >>Repair Repairing Particle Cannon... ETC: 32 01435_ ALERT: Suspicious activity at Repair Station M001. Dispatching Investigation squad. 01440_ Acquired Grenade Launcher. Map ----- +----------------------------------------------------+ | ????????????????????????????????????????? | | ????????????????????????????????????????? | | ????????????????????????????????????????? | | ????????????????????????????????????????? | | ??????????????????? ????????????????????? | | ??????????????????# ????????????????????? | | ????????????#?????? ??????? ????????????? | | #???????????????? ? ????????????????????? | | ???????????????"??+ ????????????????????? | | ???????????????"??# ??##????????????????? | | ????????????? ??"?# ?###########????????? | | ??????????????"???# ## #? ??#???? | | ??? ??????????????# ## """ T #? #???? | | ????????????????### ## """ # #??? | | ??????#???????????# ## """ * #??? | | ??????????????????# ## [%= #??? | | ########???#?????## ## =! #??? | | [ ###########[ #[ #??? | | ! """ + % # [ #???????? | | """ ###########[ #/##### # ##???????? | | """ #???? ????## *%#?????????? ?????? | | #??? ? ????# [%#????????????????? | | """ #????? ????# #########????????? | | """ #??????????# # #?????????? | | """ #??????????# =%#Y """ ##????????? | | #??????????# @"R" #?????????? | | ########?????? ??# gg " " #?????????? | | ??????????????? ?# #?????????? | | ??? ????????+???## # #?????????? | | ?????????????? ## ####?????????? | | ??? ??????????## #######???????????? | | ??????????????# ??????????????????? | | ??????????????# """???????????????????? | | ???#??????????# ""????????????????????? | | ??????????????# ??????????????????????? | | ??????????????+ ????????????????????????? | | ????????????????????????????????????????? | | ????????????????????????????????????????? | | ????????????????????????????????????????? | | ????????????????????????????????????????? | | [???????????????????????????????????????? | | ????????????????????????????????????????? | | ????????????????????????????????????????? | | ????????????????????????????????????????? | | ????????????????????????????????????????? | | ????????????????????????????????????????? | | ????????????????????????????????????????? | | ????????????????????????????????????????? | | ????????????????????????????????????????? | | ????????????????????????????????????????? | +----------------------------------------------------+ Best States ------------- Heat Dissipation 38 Energy Generation 14 Energy Capacity 450 Matter Stores 300 Matter Capacity 300 Sight Range 16 Terrain Scan Range 14 Terrain Scan Density 10 Armor Coverage 160 Evasion (%) 62 Recoil Reduction 3 Item Schematics ----------------- Datajack | -9/Materials | Scanalyzed Robot Schematics ------------------ None Fabricated ------------ Nothing Alien Tech Used ----------------- None Achievements -------------- Everything Is Under Control Challenges ------------ None Game ------ Seed InsulatedProjectionAnalyzer Manual? 0 Play Time 00:37:17 Cumulative 4.6 hours Start 2025.03.11 @ 20:21:30 End 2025.03.11 @ 20:55:27 Sessions 1 Manual Loads 0 Difficulty Rogue Special Mode None Game No. 6 Rogue 5 Adventurer 1 Explorer 0 Win Type - Total 0 Types 0/0/0/0/0/0/0/0/0 Lore% 1 Gallery% 8 Achievement% 8 Wizard Run 0 Options --------- Layout 1 ASCII 0 Keyboard 0 Movement Mouse Keybinds 0 Fullscreen 1 Font 24/Smallcaps Map View 50x35 Zoom Use 0% Tactical HUD 1 Map Filters NONE Filters NONE Steam 1 RUN: f674c8c4-a427-45b0-aabe-7ab719f9a024